bitfinex/quotes_BTCUSD_20230403
["timestamp","ask_amount","ask_price","bid_price","bid_amount"]
[1680535280157,0.02299,28032.0,28031.0,0.06698]
[1680535280918,0.11470282,28032.0,28031.0,0.06698]
[1680535281190,0.11470282,28032.0,28031.0,0.20180306]
[1680535281893,0.11470282,28032.0,28031.0,0.22203406]
[1680535282734,0.11470282,28032.0,28031.0,0.19403406]
[1680535283012,0.11470282,28032.0,28031.0,0.217017]
[1680535283278,0.11464282,28032.0,28031.0,0.217017]
[1680535285209,0.11464282,28032.0,28031.0,0.045837]
[1680535285708,0.11482282,28032.0,28031.0,0.045837]
[1680535286243,0.11482282,28032.0,28031.0,0.38086876]
[1680535287006,0.11482282,28032.0,28031.0,0.045837]
[1680535287274,0.10592282,28032.0,28031.0,0.045837]
[1680535287531,0.10574282,28032.0,28031.0,0.045837]
[1680535289476,0.10574282,28032.0,28031.0,0.017837]
[1680535289734,0.10574282,28032.0,28031.0,0.045837]
[1680535290002,0.10574282,28032.0,28031.0,0.38086876]
[1680535290268,0.10574282,28032.0,28031.0,0.20986876]
[1680535290552,0.10574282,28032.0,28031.0,0.20968876]
[1680535290828,0.10574282,28032.0,28031.0,0.045837]
[1680535299385,0.10574282,28032.0,28031.0,0.066261]
[1680535299865,0.10574282,28032.0,28031.0,0.045837]
[1680535301328,0.10574282,28032.0,28031.0,0.017837]
[1680535302884,0.10574282,28032.0,28031.0,0.12386901]
[1680535303314,0.10574282,28032.0,28031.0,0.14587701]
[1680535303527,0.10574282,28032.0,28031.0,0.20907425]
[1680535303738,0.10574282,28032.0,28031.0,0.12386901]
[1680535304799,0.10574282,28032.0,28031.0,0.10304224]
[1680535305007,0.10574282,28032.0,28031.0,0.25075809]
[1680535305223,0.10574282,28032.0,28031.0,0.23085009]
[1680535305686,0.10574282,28032.0,28031.0,0.25247609]
[1680535305895,0.10574282,28032.0,28031.0,0.23085009]
[1680535306098,0.10574282,28032.0,28031.0,0.10304224]
[1680535306587,0.10574282,28032.0,28031.0,0.62359924]
[1680535306835,0.10574282,28032.0,28031.0,0.62458224]
[1680535307348,0.10574282,28032.0,28031.0,1.72820116]
[1680535307605,0.10574282,28032.0,28031.0,1.0007906]
[1680535307860,0.10574282,28032.0,28031.0,0.8296106]
[1680535308790,0.10574282,28032.0,28031.0,0.8211106]
[1680535309242,0.10574282,28032.0,28031.0,0.63408224]
[1680535310005,0.30574282,28032.0,28031.0,0.017837]
[1680535310259,0.34336482,28032.0,28031.0,0.017837]
[1680535310523,0.34271882,28032.0,28031.0,0.017837]
[1680535310808,0.4583797,28032.0,28031.0,0.017837]
[1680535312350,0.4603797,28032.0,28031.0,0.026837]
[1680535312570,0.4583797,28032.0,28031.0,0.017837]
[1680535312785,0.4583797,28032.0,28031.0,0.026837]
[1680535312786,0.4603797,28032.0,28031.0,0.026837]
[1680535313217,0.4583797,28032.0,28031.0,0.017837]
[1680535313461,0.4603797,28032.0,28031.0,0.026837]
[1680535313701,0.4583797,28032.0,28031.0,0.017837]
[1680535314580,0.4603797,28032.0,28031.0,0.026837]
[1680535314832,0.4583797,28032.0,28031.0,0.017837]
[1680535315036,0.41661882,28032.0,28031.0,0.026837]
[1680535315252,0.41461882,28032.0,28031.0,0.017837]
[1680535315799,0.41661882,28032.0,28031.0,0.026837]
[1680535316069,0.37782282,28032.0,28031.0,0.017837]
[1680535316236,0.37982282,28032.0,28031.0,0.026837]
[1680535316657,0.4201041,28032.0,28031.0,0.026837]
[1680535316857,0.4580441,28032.0,28031.0,0.026837]
[1680535317094,0.4560441,28032.0,28031.0,0.017837]
[1680535318082,0.4580441,28032.0,28031.0,0.026837]
[1680535318293,0.4560441,28032.0,28031.0,0.017837]
[1680535318550,0.4580441,28032.0,28031.0,0.026837]
[1680535318936,0.4600441,28032.0,28031.0,0.035837]
[1680535319139,0.41976282,28032.0,28031.0,0.018]
[1680535319341,0.2,28029.0,28028.0,0.035678]
[1680535319542,0.311926,28029.0,28028.0,0.053517]
[1680535320176,0.311746,28029.0,28028.0,0.05328943]
[1680535320707,0.40259944,28029.0,28028.0,0.05328943]
[1680535320981,0.36285344,28029.0,28028.0,0.05328943]
[1680535321344,0.39984444,28029.0,28028.0,0.05328943]
[1680535322011,0.40302444,28029.0,28028.0,0.06228943]
[1680535322229,0.40002444,28029.0,28028.0,0.05328943]
[1680535322454,0.40202444,28029.0,28028.0,0.06228943]
[1680535322683,0.40002444,28029.0,28028.0,0.05328943]
[1680535322867,0.40202444,28029.0,28028.0,0.06228943]
[1680535323116,0.16503344,28029.0,28028.0,0.07565447]
[1680535323341,0.09285344,28029.0,28028.0,0.06228943]
[1680535323607,0.09285344,28029.0,28028.0,1.03238308]
[1680535323849,0.09285344,28029.0,28028.0,1.10935784]
[1680535323850,0.09085344,28029.0,28028.0,1.10935784]
[1680535324058,0.09085344,28029.0,28028.0,0.93817784]
[1680535324284,0.09085344,28029.0,28028.0,1.33141008]
[1680535324522,0.09085344,28029.0,28028.0,1.56482077]
[1680535324769,0.09085344,28029.0,28028.0,1.45068077]
[1680535325002,0.01421,28032.0,28029.0,0.02234]
[1680535325231,0.01421,28032.0,28031.0,0.875548]
[1680535325232,0.01403,28032.0,28031.0,0.875548]
[1680535325466,0.01403,28032.0,28031.0,1.23875856]
[1680535325703,0.01403,28032.0,28031.0,1.35299364]
[1680535325932,0.01403,28032.0,28031.0,1.35305364]
[1680535326162,0.01403,28032.0,28031.0,1.35329364]
[1680535326409,0.01403,28032.0,28031.0,1.35311364]
[1680535326642,0.01403,28032.0,28031.0,1.38099364]
[1680535327083,0.01403,28032.0,28031.0,1.38063364]
[1680535327316,0.01403,28032.0,28031.0,1.38069364]
[1680535327541,0.01403,28032.0,28031.0,1.38063364]
[1680535327748,0.01403,28032.0,28031.0,1.38075364]
[1680535327972,0.01403,28032.0,28031.0,1.38063364]
[1680535328118,0.01403,28032.0,28031.0,1.38913364]
[1680535328335,0.01403,28032.0,28031.0,1.38889364]
[1680535328540,0.01403,28032.0,28031.0,1.38907364]
[1680535328744,0.01403,28032.0,28031.0,1.38895364]
[1680535328973,0.01403,28032.0,28031.0,1.38901364]
[1680535329185,0.01403,28032.0,28031.0,1.38895364]
[1680535329423,0.01403,28032.0,28031.0,1.38883364]
[1680535329808,0.01403,28032.0,28031.0,1.21053364]
[1680535330036,0.01403,28032.0,28031.0,1.38888364]
[1680535330263,0.01403,28032.0,28031.0,1.38882364]
[1680535330487,0.01403,28032.0,28031.0,1.38894364]
[1680535330707,0.01403,28032.0,28031.0,1.38888364]
[1680535330923,0.01403,28032.0,28031.0,1.38894364]
[1680535331366,0.01403,28032.0,28031.0,1.38870364]
[1680535331605,0.01403,28032.0,28031.0,1.38864364]
[1680535331829,0.01403,28032.0,28031.0,1.46510364]
[1680535332047,0.01403,28032.0,28031.0,1.55050084]
[1680535332255,0.01403,28032.0,28031.0,1.55051084]
[1680535332738,0.01403,28032.0,28031.0,1.59317944]
[1680535332904,0.01403,28032.0,28031.0,1.59287944]
[1680535333123,0.01403,28032.0,28031.0,1.59275944]
[1680535333332,0.01403,28032.0,28031.0,1.59269944]
[1680535333501,0.01403,28032.0,28031.0,1.59281944]
[1680535333706,0.01403,28032.0,28031.0,1.59287944]
[1680535333996,0.01403,28032.0,28031.0,1.59293944]
[1680535334747,0.01403,28032.0,28031.0,1.59281944]
[1680535334995,0.01403,28032.0,28031.0,1.59263944]
[1680535335247,0.01403,28032.0,28031.0,1.59269944]
[1680535335538,0.01403,28032.0,28031.0,1.59281944]
[1680535335797,0.01403,28032.0,28031.0,1.59280944]
[1680535336342,0.01403,28032.0,28031.0,1.59286944]
[1680535336878,0.01403,28032.0,28031.0,1.6782774]
[1680535336879,0.01403,28032.0,28031.0,1.6783974]
[1680535337152,0.01403,28032.0,28031.0,1.66920944]
[1680535337394,0.01403,28032.0,28031.0,1.66896944]
[1680535337648,0.01403,28032.0,28031.0,1.66914944]
[1680535337957,0.01403,28032.0,28031.0,1.66908944]
[1680535338176,0.01403,28032.0,28031.0,1.66932944]
[1680535338432,0.01403,28032.0,28031.0,1.66914944]
[1680535338958,0.01403,28032.0,28031.0,1.66902944]
[1680535339274,0.01403,28032.0,28031.0,1.66908944]
[1680535339727,0.01403,28032.0,28031.0,1.66890944]
[1680535339981,0.01403,28032.0,28031.0,1.66902944]
[1680535340518,0.01403,28032.0,28031.0,1.66908944]
[1680535340753,0.01403,28032.0,28031.0,1.66914944]
[1680535341010,0.01403,28032.0,28031.0,1.66908944]
[1680535341761,0.01403,28032.0,28031.0,1.66902944]
[1680535342024,0.01403,28032.0,28031.0,1.59256944]
[1680535342285,0.01403,28032.0,28031.0,1.59250944]
[1680535342547,0.01403,28032.0,28031.0,1.59268944]
[1680535342800,0.01403,28032.0,28031.0,1.59262944]
[1680535343084,0.01403,28032.0,28031.0,1.59268944]
[1680535343331,0.01403,28032.0,28031.0,1.89262944]
[1680535343881,0.01403,28032.0,28031.0,2.59256944]
[1680535344153,0.01403,28032.0,28031.0,2.66902944]
[1680535344707,0.01403,28032.0,28031.0,2.66896944]
[1680535344751,0.01394422,28032.0,28031.0,2.66890944]
[1680535345011,0.01394422,28032.0,28031.0,2.83907933]
[1680535345273,0.01394422,28032.0,28031.0,2.83865933]
[1680535345536,0.01394422,28032.0,28031.0,2.71031804]
[1680535345803,0.01394422,28032.0,28031.0,2.90083981]
[1680535346064,0.01394422,28032.0,28031.0,3.3009229]
[1680535346327,0.01394422,28032.0,28031.0,2.91627541]
[1680535346584,0.01394422,28032.0,28031.0,2.88743541]
[1680535346854,0.01394422,28032.0,28031.0,2.91549541]
[1680535347123,0.01394422,28032.0,28031.0,2.91537541]
[1680535347384,0.01394422,28032.0,28031.0,3.10061932]
[1680535347661,0.02317,28039.0,28033.0,0.40811]
[1680535348129,0.02299,28039.0,28033.0,3.0252322]
[1680535348349,0.02299,28039.0,28033.0,3.0266322]
[1680535348398,0.02299,28039.0,28033.0,3.24451397]
[1680535348685,0.02299,28039.0,28033.0,3.20192341]
[1680535349038,0.02299,28039.0,28033.0,3.41527381]
[1680535349339,0.02299,28039.0,28033.0,3.95807797]
[1680535349690,0.02299,28039.0,28033.0,4.15617518]
[1680535349939,0.02299,28039.0,28033.0,3.95100478]
[1680535350217,0.02299,28039.0,28033.0,3.95094478]
[1680535350661,0.00299,28034.0,28033.0,3.99329797]
[1680535350936,0.02299,28039.0,28033.0,3.99264548]
[1680535351206,0.02299,28039.0,28038.0,1.09341056]
[1680535351477,0.02299,28039.0,28038.0,2.67697156]
[1680535351909,0.02299,28039.0,28038.0,3.40181156]
[1680535351912,0.02299,28039.0,28038.0,3.41013156]
[1680535352173,0.02299,28039.0,28038.0,3.91007156]
[1680535352450,0.02299,28040.0,28039.0,0.53541]
[1680535352727,0.02299,28040.0,28039.0,2.46325056]
[1680535353007,0.02299,28040.0,28039.0,2.48683056]
[1680535353684,0.02299,28040.0,28039.0,2.48635056]
[1680535353850,0.02299,28040.0,28039.0,2.58556564]
[1680535354104,0.02299,28040.0,28039.0,2.58550564]
[1680535354357,0.02299,28040.0,28039.0,2.61326564]
[1680535354610,0.02299,28040.0,28039.0,2.58538564]
[1680535354902,0.02299,28040.0,28039.0,2.61308564]
[1680535355385,0.02299,28040.0,28039.0,2.58502564]
[1680535355644,0.02299,28040.0,28039.0,2.61296564]
[1680535355905,0.02299,28040.0,28039.0,2.58502564]
[1680535356199,0.02299,28040.0,28039.0,2.61476564]
[1680535356424,0.02299,28040.0,28039.0,2.61302564]
[1680535356687,0.02299,28040.0,28039.0,2.61296564]
[1680535356948,0.02299,28040.0,28039.0,2.61278564]
[1680535357522,0.02299,28040.0,28039.0,2.61284564]
[1680535357727,0.02299,28040.0,28039.0,2.58502564]
[1680535357983,0.02299,28040.0,28039.0,2.61296564]
[1680535358241,0.02299,28040.0,28039.0,2.63843049]
[1680535358490,0.02299,28040.0,28039.0,2.81885049]
[1680535358812,0.02299,28040.0,28039.0,2.81891049]
[1680535359009,0.00018,28047.0,28039.0,2.81885049]
[1680535359273,0.00018,28047.0,28046.0,0.62735]
[1680535359537,0.00018,28047.0,28046.0,1.34114256]
[1680535359800,0.00018,28047.0,28046.0,1.37010256]
[1680535360120,0.00018,28047.0,28046.0,1.37016256]
[1680535360316,0.00018,28047.0,28046.0,1.36974256]
[1680535360575,0.00018,28047.0,28046.0,1.54465764]
[1680535360845,0.02299,28048.0,28046.0,1.84345764]
[1680535361123,0.02299,28048.0,28047.0,1.24515656]
[1680535361432,0.02299,28048.0,28047.0,1.28152356]
[1680535361670,0.09234702,28048.0,28047.0,1.29992356]
[1680535361937,0.09234702,28048.0,28047.0,1.5219758]
[1680535362215,0.09234702,28048.0,28047.0,1.5219158]
[1680535362471,0.09234702,28048.0,28047.0,1.5496158]
[1680535362700,0.09234702,28048.0,28047.0,1.5496758]
[1680535362918,0.09234702,28048.0,28047.0,1.16710356]
[1680535363133,0.09252702,28048.0,28047.0,1.16806356]
[1680535363356,0.09252702,28048.0,28047.0,0.085947]
[1680535363571,0.09252702,28048.0,28047.0,0.045827]
[1680535364271,0.09252702,28048.0,28047.0,0.017827]
[1680535364492,0.09252702,28048.0,28047.0,0.045827]
[1680535364933,0.09252702,28048.0,28047.0,0.0983763]
[1680535365166,0.09252702,28048.0,28047.0,0.1068763]
[1680535365399,0.09252702,28048.0,28047.0,0.054327]
[1680535367546,0.09252702,28048.0,28047.0,0.073127]
[1680535369998,0.09252702,28048.0,28047.0,0.094907]
[1680535370223,0.09252702,28048.0,28047.0,1.00069756]
[1680535370472,0.09234702,28048.0,28047.0,1.01961056]
[1680535370711,0.09234702,28048.0,28047.0,1.45204622]
[1680535371137,0.09234702,28048.0,28047.0,1.31925056]
[1680535371352,0.09234702,28048.0,28047.0,1.31901056]
[1680535371576,0.09234702,28048.0,28047.0,1.31907056]
[1680535371832,0.09234702,28048.0,28047.0,1.35436056]
[1680535372040,0.09234702,28048.0,28047.0,1.35430056]
[1680535372266,0.09234702,28048.0,28047.0,1.52882522]
[1680535372478,0.09234702,28048.0,28047.0,2.22888522]
[1680535372701,0.09234702,28048.0,28047.0,2.05436056]
[1680535373370,0.09234702,28048.0,28047.0,2.05430056]
[1680535373604,0.09234702,28048.0,28047.0,2.05419577]
[1680535373821,0.09234702,28048.0,28047.0,2.02607577]
[1680535374034,0.09234702,28048.0,28047.0,2.05401577]
[1680535374268,0.09234702,28048.0,28047.0,2.26219195]
[1680535374495,0.09234702,28048.0,28047.0,2.29013195]
[1680535374707,0.09234702,28048.0,28047.0,2.29001195]
[1680535375348,0.09234702,28048.0,28047.0,2.29007195]
[1680535375819,0.09234702,28048.0,28047.0,2.29001195]
[1680535376041,0.09234702,28048.0,28047.0,2.29007195]
[1680535376254,0.09234702,28048.0,28047.0,2.29001195]
[1680535376481,0.09234702,28048.0,28047.0,2.28995195]
[1680535376929,0.09234702,28048.0,28047.0,2.29001195]
[1680535377168,0.09234702,28048.0,28047.0,2.28995195]
[1680535377398,0.09234702,28048.0,28047.0,2.28989195]
[1680535377835,0.09234702,28048.0,28047.0,2.28983195]
[1680535378049,0.09234702,28048.0,28047.0,2.28977195]
[1680535378271,0.09234702,28048.0,28047.0,2.28989195]
[1680535378503,0.09234702,28048.0,28047.0,1.75371577]
[1680535378745,0.09234702,28048.0,28047.0,1.57653577]
[1680535378994,0.09234702,28048.0,28047.0,1.57767577]
[1680535379220,0.09234702,28048.0,28047.0,1.57749577]
[1680535379441,0.09234702,28048.0,28047.0,1.57707577]
[1680535379656,0.09234702,28048.0,28047.0,1.54937577]
[1680535379890,0.09234702,28048.0,28047.0,1.84973577]
[1680535380111,0.09234702,28048.0,28047.0,1.54979577]
[1680535380331,0.09234702,28048.0,28047.0,1.54973577]
[1680535380565,0.09234702,28048.0,28047.0,1.54961577]
[1680535380822,0.09234702,28048.0,28047.0,0.87743577]
[1680535381062,0.09234702,28048.0,28047.0,0.87737577]
[1680535381270,0.09234702,28048.0,28047.0,0.87731577]
[1680535381489,0.09234702,28048.0,28047.0,1.05527577]
[1680535381939,0.09234702,28048.0,28047.0,1.05479577]
[1680535382173,0.09234702,28048.0,28047.0,1.05521577]
[1680535382393,0.09234702,28048.0,28047.0,1.05467577]
[1680535382614,0.09234702,28048.0,28047.0,1.22089995]
[1680535382849,0.09234702,28048.0,28047.0,1.91909995]
[1680535383075,0.09234702,28048.0,28047.0,1.91885995]
[1680535383342,0.09234702,28048.0,28047.0,1.91867995]
[1680535383528,0.09234702,28048.0,28047.0,2.21843995]
[1680535383767,0.02299,28048.0,28047.0,2.30247995]
[1680535383983,0.02299,28048.0,28047.0,2.27411995]
[1680535384221,0.02299,28048.0,28047.0,2.30205995]
[1680535384455,0.02299,28048.0,28047.0,2.49361081]
[1680535384670,0.02299,28048.0,28047.0,2.49241081]
[1680535384896,0.02299,28048.0,28047.0,2.46585081]
[1680535385104,0.02299,28048.0,28047.0,2.49193081]
[1680535385320,0.02299,28048.0,28047.0,2.49211081]
[1680535385536,0.02299,28048.0,28047.0,2.49193081]
[1680535385749,0.02299,28048.0,28047.0,2.49199081]
[1680535385979,0.02299,28048.0,28047.0,2.46411081]
[1680535386205,0.02299,28048.0,28047.0,2.46393081]
[1680535386673,0.02299,28048.0,28047.0,2.51798327]
[1680535386905,0.02299,28048.0,28047.0,2.51786327]
[1680535387125,0.02299,28048.0,28047.0,2.51774327]
[1680535387375,0.02299,28048.0,28047.0,2.51780327]
[1680535387634,0.02299,28048.0,28047.0,2.54544327]
[1680535387906,0.02299,28048.0,28047.0,2.54532327]
[1680535388161,0.02299,28048.0,28047.0,2.54526327]
[1680535388877,0.02299,28051.0,28047.0,2.64636603]
[1680535388878,0.02299,28051.0,28047.0,2.64564603]
[1680535389129,0.01,28054.0,28050.0,0.93162056]
[1680535389381,0.01,28054.0,28053.0,1.02541056]
[1680535389604,0.01,28054.0,28053.0,1.39929056]
[1680535389831,0.01,28054.0,28053.0,1.44763056]
[1680535390054,0.01,28054.0,28053.0,1.53211056]
[1680535390288,0.01,28054.0,28053.0,1.69791474]
[1680535390518,1.787939,28060.0,28055.0,0.62081]
[1680535390747,0.567939,28060.0,28059.0,1.10976056]
[1680535390975,0.562939,28060.0,28059.0,1.56440756]
[1680535391224,0.562939,28060.0,28059.0,1.57010756]
[1680535391460,0.36674565,28060.0,28059.0,1.88762805]
[1680535391695,0.36674565,28060.0,28059.0,1.57090805]
[1680535391922,0.36674565,28060.0,28059.0,1.088887]
[1680535391923,0.50876246,28060.0,28059.0,1.088887]
[1680535392143,0.36692565,28060.0,28059.0,0.379467]
[1680535392368,0.36692565,28060.0,28059.0,0.152736]
[1680535392582,0.36692565,28060.0,28059.0,0.124736]
[1680535392810,0.40133724,28060.0,28059.0,0.152736]
[1680535393024,0.40133724,28060.0,28059.0,0.47944656]
[1680535393025,0.40139724,28060.0,28059.0,0.47944656]
[1680535393244,0.40139724,28060.0,28059.0,0.50744656]
[1680535393691,0.40139724,28060.0,28059.0,0.99449922]
[1680535393914,0.40139724,28060.0,28059.0,1.23377822]
[1680535394133,0.40139724,28060.0,28059.0,1.23341822]
[1680535394348,0.40139724,28060.0,28059.0,0.53290056]
[1680535394567,0.40127724,28060.0,28059.0,1.13817062]
[1680535394796,0.40127724,28060.0,28059.0,1.03947862]
[1680535394797,0.40121724,28060.0,28059.0,1.03947862]
[1680535395026,0.40121724,28060.0,28059.0,1.07422862]
[1680535395243,0.40121724,28060.0,28059.0,1.07410862]
[1680535395460,0.40321724,28060.0,28059.0,1.08456862]
[1680535395682,0.40121724,28060.0,28059.0,1.07326862]
[1680535395899,0.40321724,28060.0,28059.0,1.08348862]
[1680535396113,0.40121724,28060.0,28059.0,1.42893962]
[1680535396442,0.40121724,28060.0,28059.0,1.42953962]
[1680535396536,0.40121724,28060.0,28059.0,1.37737156]
[1680535396779,0.40321724,28060.0,28059.0,1.39603156]
[1680535397006,0.40321724,28060.0,28059.0,1.39585156]
[1680535397243,0.03221665,28060.0,28059.0,1.39585156]
[1680535397483,0.03221665,28060.0,28059.0,1.54337672]
[1680535397718,0.03221665,28060.0,28059.0,1.53773672]
[1680535397961,0.04353581,28060.0,28059.0,1.83731672]
[1680535398195,0.04153581,28060.0,28059.0,1.82691672]
[1680535398424,0.00913549,28060.0,28059.0,1.83773672]
[1680535398658,0.02449,28064.0,28059.0,1.82613672]
[1680535398906,0.02449,28064.0,28061.0,0.3727]
[1680535399157,0.02467,28064.0,28063.0,0.3727]
[1680535399394,0.02467,28064.0,28063.0,0.75996556]
[1680535399630,0.02449,28064.0,28063.0,0.75996556]
[1680535399859,0.062818,28064.0,28063.0,0.76846556]
[1680535400086,0.062998,28064.0,28063.0,0.88549022]
[1680535400315,0.062818,28064.0,28063.0,1.30570022]
[1680535400548,0.062818,28064.0,28063.0,1.41980022]
[1680535401623,0.064818,28064.0,28063.0,1.43080022]
[1680535401866,0.060818,28064.0,28063.0,1.41980022]
[1680535402087,0.062818,28064.0,28063.0,1.43080022]
[1680535403786,0.02649,28064.0,28063.0,1.88080022]
[1680535404007,0.02649,28064.0,28063.0,1.79600022]
[1680535405741,0.02649,28064.0,28063.0,2.49600022]
[1680535411947,0.02649,28064.0,28063.0,2.58030022]
[1680535413926,0.02299,28065.0,28063.0,2.58030022]
[1680535414143,0.02299,28065.0,28064.0,1.69987456]
[1680535414367,0.02299,28065.0,28064.0,3.52230656]
[1680535414581,0.02299,28065.0,28064.0,3.63140656]
[1680535415024,0.02299,28065.0,28064.0,3.71600656]
[1680535415237,0.02299,28065.0,28064.0,3.71570656]
[1680535415650,0.02317,28071.0,28066.0,0.40811]
[1680535415898,0.02317,28071.0,28070.0,0.3727]
[1680535416127,0.02317,28071.0,28070.0,0.86687456]
[1680535416353,0.41515633,28076.0,28070.0,0.87543456]
[1680535416575,0.41515633,28076.0,28072.0,0.3727]
[1680535416805,0.41533633,28076.0,28074.0,0.3727]
[1680535417040,0.00018,28076.0,28075.0,0.434627]
[1680535417279,0.02299,28077.0,28075.0,0.061927]
[1680535417509,0.02299,28077.0,28075.0,0.545627]
[1680535417721,0.02299,28077.0,28075.0,0.172927]
[1680535418173,0.02299,28077.0,28075.0,0.1973439]
[1680535418409,0.02299,28077.0,28075.0,0.5980439]
[1680535418639,0.02299,28077.0,28075.0,0.95275446]
[1680535420084,0.0846,28076.0,28073.0,0.00018]
[1680535420331,0.0846,28074.0,28072.0,0.071244]
[1680535420557,0.0846,28073.0,28072.0,0.071244]
[1680535420790,0.0846,28073.0,28072.0,0.124677]
[1680535421022,0.0846,28075.0,28072.0,0.85208756]
[1680535421228,0.0846,28075.0,28073.0,0.05]
[1680535421449,0.0846,28075.0,28074.0,0.42613]
[1680535421680,0.0846,28075.0,28074.0,0.78084056]
[1680535421888,0.02299,28077.0,28074.0,0.78084056]
[1680535422114,0.02299,28077.0,28074.0,0.89167702]
[1680535422381,0.02299,28077.0,28076.0,0.3727]
[1680535422624,0.02299,28077.0,28076.0,0.521468]
[1680535422834,0.02299,28077.0,28076.0,0.148768]
[1680535423044,0.02299,28077.0,28076.0,0.13316]
[1680535423266,0.02299,28077.0,28076.0,0.92048456]
[1680535423480,0.02299,28077.0,28076.0,1.62775756]
[1680535423740,0.02299,28077.0,28076.0,1.74776756]
[1680535423917,0.02299,28077.0,28076.0,1.71976756]
[1680535424124,0.02299,28077.0,28076.0,1.74776756]
[1680535424339,0.02299,28077.0,28076.0,1.71976756]
[1680535424546,0.02299,28077.0,28076.0,1.74776756]
[1680535424760,0.02299,28077.0,28076.0,2.44794756]
[1680535424979,0.00249306,28078.0,28077.0,0.45]
[1680535425206,0.00249306,28078.0,28077.0,2.39402122]
[1680535425421,0.00249306,28078.0,28077.0,2.47782122]
[1680535425846,0.02299,28081.0,28079.0,0.40811]
[1680535426071,0.02299,28081.0,28080.0,1.38902756]
[1680535426290,0.50827445,28081.0,28080.0,0.015002]
[1680535426511,0.50827445,28081.0,28078.0,0.035614]
[1680535426512,0.153542,28081.0,28078.0,0.035614]
[1680535426734,0.153542,28081.0,28077.0,0.77123]
[1680535426735,0.0846,28079.0,28077.0,0.77123]
[1680535426955,0.0846,28079.0,28078.0,0.053422]
[1680535427452,0.0846,28079.0,28078.0,0.454122]
[1680535427703,0.05667835,28081.0,28078.0,1.01143776]
[1680535427935,0.05649835,28081.0,28079.0,0.73703756]
[1680535428180,0.05649835,28081.0,28080.0,0.761394]
[1680535428715,0.05649835,28081.0,28080.0,0.769894]
[1680535429366,0.05649835,28081.0,28080.0,0.081418]
[1680535429599,0.05649835,28081.0,28080.0,0.045806]
[1680535430040,0.53175199,28081.0,28080.0,0.017806]
[1680535430287,0.53175199,28081.0,28080.0,0.045806]
[1680535430525,0.53175199,28081.0,28080.0,0.017806]
[1680535430963,0.53175199,28081.0,28080.0,0.026806]
[1680535430964,0.53475199,28081.0,28080.0,0.026806]
[1680535431180,0.19136435,28081.0,28080.0,0.062418]
[1680535431397,0.14349835,28081.0,28080.0,0.062418]
[1680535431854,0.14049835,28081.0,28080.0,0.053418]
[1680535432069,0.14149835,28081.0,28080.0,0.0749006]
[1680535432292,0.05649835,28081.0,28080.0,0.2439626]
[1680535432509,0.05949835,28081.0,28080.0,0.25124]
[1680535432724,0.05649835,28081.0,28080.0,0.23166]
[1680535432947,0.05949835,28081.0,28080.0,0.24066]
[1680535433168,0.05649835,28081.0,28080.0,0.24016]
[1680535433390,0.05649835,28081.0,28080.0,0.071098]
[1680535433623,0.14369835,28081.0,28080.0,0.062418]
[1680535433845,0.14069835,28081.0,28080.0,0.053418]
[1680535434070,0.05649835,28081.0,28080.0,0.053418]
[1680535434727,0.05949835,28081.0,28080.0,0.062418]
[1680535434942,0.05649835,28081.0,28080.0,0.053418]
[1680535435223,0.12044619,28081.0,28080.0,0.062418]
[1680535435452,0.10631835,28081.0,28080.0,0.062418]
[1680535435675,0.05949835,28081.0,28080.0,0.070918]
[1680535435899,0.05949835,28081.0,28080.0,0.062418]
[1680535436122,0.05949835,28081.0,28080.0,0.053418]
[1680535436123,0.10323035,28081.0,28080.0,0.053418]
[1680535436344,0.10341035,28081.0,28080.0,0.053418]
[1680535437253,0.18801035,28081.0,28080.0,0.053418]
[1680535437720,0.154502,28081.0,28080.0,0.053418]
[1680535437935,0.154322,28081.0,28080.0,0.053418]
[1680535438177,0.157322,28081.0,28080.0,0.026806]
[1680535438397,0.154322,28081.0,28080.0,0.017806]
[1680535439048,0.154322,28081.0,28079.0,0.017806]
[1680535439273,0.36844105,28081.0,28080.0,0.009]
[1680535439498,0.50005805,28081.0,28080.0,0.009]
[1680535440132,0.50023805,28081.0,28080.0,0.009]
[1680535440365,0.55026186,28081.0,28080.0,0.009]
[1680535440809,0.54826186,28081.0,28079.0,0.017806]
[1680535441027,0.131357,28080.0,28079.0,0.017806]
[1680535441932,0.132357,28080.0,28079.0,0.024806]
[1680535442153,0.131357,28080.0,28079.0,0.017806]
[1680535442384,0.132357,28080.0,28079.0,0.024806]
[1680535442593,0.131357,28080.0,28079.0,0.017806]
[1680535443987,0.132357,28080.0,28079.0,0.024806]
[1680535444204,0.132357,28080.0,28079.0,0.017806]
[1680535444420,0.133357,28080.0,28079.0,0.024806]
[1680535444657,0.133357,28080.0,28079.0,0.017806]
[1680535444658,0.131357,28080.0,28079.0,0.017806]
[1680535444877,0.0856,28080.0,28079.0,0.024806]
[1680535445100,0.134842,28080.0,28079.0,0.024806]
[1680535445327,0.0856,28080.0,28079.0,0.024806]
[1680535447121,0.135817,28080.0,28079.0,0.024806]
[1680535447334,0.001,28080.0,28079.0,0.024806]
[1680535447560,0.001,28080.0,28079.0,0.033306]
[1680535447855,0.001,28080.0,28079.0,0.043174]
[1680535448024,0.001,28080.0,28079.0,0.77058456]
[1680535448240,0.01799,28081.0,28079.0,0.88702052]
[1680535448475,0.01799,28081.0,28080.0,0.016948]
[1680535448702,0.01799,28081.0,28080.0,0.141591]
[1680535448948,0.01799,28081.0,28080.0,0.133143]
[1680535449397,0.01799,28081.0,28080.0,0.87044756]
[1680535449618,0.01799,28081.0,28080.0,0.97691732]
[1680535450067,0.0846,28087.0,28080.0,0.143217]
[1680535450306,0.002,28081.0,28080.0,0.142823]
[1680535450539,0.002,28081.0,28080.0,0.035986]
[1680535450773,0.0866,28081.0,28080.0,0.035806]
[1680535451019,0.13239,28081.0,28080.0,0.035986]
[1680535451241,0.145629,28081.0,28080.0,0.035986]
[1680535451461,0.13239,28081.0,28080.0,0.035986]
[1680535451688,0.13039,28081.0,28080.0,0.017986]
[1680535451927,0.13039,28081.0,28080.0,0.017806]
[1680535452371,0.04579,28081.0,28080.0,0.017806]
[1680535452603,0.002,28081.0,28080.0,0.033806]
[1680535452834,0.0866,28081.0,28080.0,0.033806]
[1680535453298,0.13411,28081.0,28080.0,0.017806]
[1680535453522,0.13411,28081.0,28080.0,0.033986]
[1680535453523,0.13611,28081.0,28080.0,0.033986]
[1680535453743,0.13411,28081.0,28080.0,0.017986]